{"text_format":"3","workbook":"xlsx","n_sheets":2,"sheets":["Feuil1","Feuil2"],"not_rendered":{"macros":1},"read":"whole","date_system":"1900"}

{"sheet":"Feuil1","index":0,"n_rows":100,"n_cols":5,"rows_kept":100}
[null,null,"valeur 1",null,{"$f":"IFERROR(VLOOKUP(C1,Feuil2!A:C,3,FALSE),0)","v":"retour 1"}]
[null,null,"valeur 2",null,{"$f":"IFERROR(VLOOKUP(C2,Feuil2!A:C,3,FALSE),0)","v":"retour 2"}]
[null,null,"valeur 3",null,{"$f":"IFERROR(VLOOKUP(C3,Feuil2!A:C,3,FALSE),0)","v":"retour 3"}]
[null,null,"valeur 4",null,{"$f":"IFERROR(VLOOKUP(C4,Feuil2!A:C,3,FALSE),0)","v":"retour 4"}]
[null,null,"valeur 5",null,{"$f":"IFERROR(VLOOKUP(C5,Feuil2!A:C,3,FALSE),0)","v":"retour 5"}]
[null,null,"valeur 6",null,{"$f":"IFERROR(VLOOKUP(C6,Feuil2!A:C,3,FALSE),0)","v":"retour 6"}]
[null,null,"valeur 7",null,{"$f":"IFERROR(VLOOKUP(C7,Feuil2!A:C,3,FALSE),0)","v":"retour 7"}]
[null,null,"valeur 8",null,{"$f":"IFERROR(VLOOKUP(C8,Feuil2!A:C,3,FALSE),0)","v":"retour 8"}]
[null,null,"valeur 9",null,{"$f":"IFERROR(VLOOKUP(C9,Feuil2!A:C,3,FALSE),0)","v":"retour 9"}]
[null,null,"valeur 10",null,{"$f":"IFERROR(VLOOKUP(C10,Feuil2!A:C,3,FALSE),0)","v":"retour 10"}]
[null,null,"valeur 11",null,{"$f":"IFERROR(VLOOKUP(C11,Feuil2!A:C,3,FALSE),0)","v":0}]
[null,null,"valeur 12",null,{"$f":"IFERROR(VLOOKUP(C12,Feuil2!A:C,3,FALSE),0)","v":0}]
[null,null,"valeur 13",null,{"$f":"IFERROR(VLOOKUP(C13,Feuil2!A:C,3,FALSE),0)","v":0}]
[null,null,"valeur 14",null,{"$f":"IFERROR(VLOOKUP(C14,Feuil2!A:C,3,FALSE),0)","v":0}]
[null,null,"valeur 15",null,{"$f":"IFERROR(VLOOKUP(C15,Feuil2!A:C,3,FALSE),0)","v":0}]
[null,null,"valeur 16",null,{"$f":"IFERROR(VLOOKUP(C16,Feuil2!A:C,3,FALSE),0)","v":0}]
[null,null,"valeur 17",null,{"$f":"IFERROR(VLOOKUP(C17,Feuil2!A:C,3,FALSE),0)","v":0}]
[null,null,"valeur 18",null,{"$f":"IFERROR(VLOOKUP(C18,Feuil2!A:C,3,FALSE),0)","v":0}]
[null,null,"valeur 19",null,{"$f":"IFERROR(VLOOKUP(C19,Feuil2!A:C,3,FALSE),0)","v":0}]
[null,null,"valeur 20",null,{"$f":"IFERROR(VLOOKUP(C20,Feuil2!A:C,3,FALSE),0)","v":0}]
[null,null,"valeur 21",null,{"$f":"IFERROR(VLOOKUP(C21,Feuil2!A:C,3,FALSE),0)","v":0}]
[null,null,"valeur 22",null,{"$f":"IFERROR(VLOOKUP(C22,Feuil2!A:C,3,FALSE),0)","v":0}]
[null,null,"valeur 23",null,{"$f":"IFERROR(VLOOKUP(C23,Feuil2!A:C,3,FALSE),0)","v":0}]
[null,null,"valeur 24",null,{"$f":"IFERROR(VLOOKUP(C24,Feuil2!A:C,3,FALSE),0)","v":0}]
[null,null,"valeur 25",null,{"$f":"IFERROR(VLOOKUP(C25,Feuil2!A:C,3,FALSE),0)","v":0}]
[null,null,"valeur 26",null,{"$f":"IFERROR(VLOOKUP(C26,Feuil2!A:C,3,FALSE),0)","v":0}]
[null,null,"valeur 27",null,{"$f":"IFERROR(VLOOKUP(C27,Feuil2!A:C,3,FALSE),0)","v":0}]
[null,null,"valeur 28",null,{"$f":"IFERROR(VLOOKUP(C28,Feuil2!A:C,3,FALSE),0)","v":0}]
[null,null,"valeur 29",null,{"$f":"IFERROR(VLOOKUP(C29,Feuil2!A:C,3,FALSE),0)","v":0}]
[null,null,"valeur 30",null,{"$f":"IFERROR(VLOOKUP(C30,Feuil2!A:C,3,FALSE),0)","v":0}]
[null,null,"valeur 31",null,{"$f":"IFERROR(VLOOKUP(C31,Feuil2!A:C,3,FALSE),0)","v":0}]
[null,null,"valeur 32",null,{"$f":"IFERROR(VLOOKUP(C32,Feuil2!A:C,3,FALSE),0)","v":0}]
[null,null,"valeur 33",null,{"$f":"IFERROR(VLOOKUP(C33,Feuil2!A:C,3,FALSE),0)","v":0}]
[null,null,"valeur 34",null,{"$f":"IFERROR(VLOOKUP(C34,Feuil2!A:C,3,FALSE),0)","v":0}]
[null,null,"valeur 35",null,{"$f":"IFERROR(VLOOKUP(C35,Feuil2!A:C,3,FALSE),0)","v":0}]
[null,null,"valeur 36",null,{"$f":"IFERROR(VLOOKUP(C36,Feuil2!A:C,3,FALSE),0)","v":0}]
[null,null,"valeur 37",null,{"$f":"IFERROR(VLOOKUP(C37,Feuil2!A:C,3,FALSE),0)","v":0}]
[null,null,"valeur 38",null,{"$f":"IFERROR(VLOOKUP(C38,Feuil2!A:C,3,FALSE),0)","v":0}]
[null,null,"valeur 39",null,{"$f":"IFERROR(VLOOKUP(C39,Feuil2!A:C,3,FALSE),0)","v":0}]
[null,null,"valeur 40",null,{"$f":"IFERROR(VLOOKUP(C40,Feuil2!A:C,3,FALSE),0)","v":0}]
[null,null,"valeur 41",null,{"$f":"IFERROR(VLOOKUP(C41,Feuil2!A:C,3,FALSE),0)","v":0}]
[null,null,"valeur 42",null,{"$f":"IFERROR(VLOOKUP(C42,Feuil2!A:C,3,FALSE),0)","v":0}]
[null,null,"valeur 43",null,{"$f":"IFERROR(VLOOKUP(C43,Feuil2!A:C,3,FALSE),0)","v":0}]
[null,null,"valeur 44",null,{"$f":"IFERROR(VLOOKUP(C44,Feuil2!A:C,3,FALSE),0)","v":0}]
[null,null,"valeur 45",null,{"$f":"IFERROR(VLOOKUP(C45,Feuil2!A:C,3,FALSE),0)","v":0}]
[null,null,"valeur 46",null,{"$f":"IFERROR(VLOOKUP(C46,Feuil2!A:C,3,FALSE),0)","v":0}]
[null,null,"valeur 47",null,{"$f":"IFERROR(VLOOKUP(C47,Feuil2!A:C,3,FALSE),0)","v":0}]
[null,null,"valeur 48",null,{"$f":"IFERROR(VLOOKUP(C48,Feuil2!A:C,3,FALSE),0)","v":0}]
[null,null,"valeur 49",null,{"$f":"IFERROR(VLOOKUP(C49,Feuil2!A:C,3,FALSE),0)","v":0}]
[null,null,"valeur 50",null,{"$f":"IFERROR(VLOOKUP(C50,Feuil2!A:C,3,FALSE),0)","v":0}]
[null,null,"valeur 51",null,{"$f":"IFERROR(VLOOKUP(C51,Feuil2!A:C,3,FALSE),0)","v":0}]
[null,null,"valeur 52",null,{"$f":"IFERROR(VLOOKUP(C52,Feuil2!A:C,3,FALSE),0)","v":0}]
[null,null,"valeur 53",null,{"$f":"IFERROR(VLOOKUP(C53,Feuil2!A:C,3,FALSE),0)","v":0}]
[null,null,"valeur 54",null,{"$f":"IFERROR(VLOOKUP(C54,Feuil2!A:C,3,FALSE),0)","v":0}]
[null,null,"valeur 55",null,{"$f":"IFERROR(VLOOKUP(C55,Feuil2!A:C,3,FALSE),0)","v":0}]
[null,null,"valeur 56",null,{"$f":"IFERROR(VLOOKUP(C56,Feuil2!A:C,3,FALSE),0)","v":0}]
[null,null,"valeur 57",null,{"$f":"IFERROR(VLOOKUP(C57,Feuil2!A:C,3,FALSE),0)","v":0}]
[null,null,"valeur 58",null,{"$f":"IFERROR(VLOOKUP(C58,Feuil2!A:C,3,FALSE),0)","v":0}]
[null,null,"valeur 59",null,{"$f":"IFERROR(VLOOKUP(C59,Feuil2!A:C,3,FALSE),0)","v":0}]
[null,null,"valeur 60",null,{"$f":"IFERROR(VLOOKUP(C60,Feuil2!A:C,3,FALSE),0)","v":0}]
[null,null,"valeur 61",null,{"$f":"IFERROR(VLOOKUP(C61,Feuil2!A:C,3,FALSE),0)","v":0}]
[null,null,"valeur 62",null,{"$f":"IFERROR(VLOOKUP(C62,Feuil2!A:C,3,FALSE),0)","v":0}]
[null,null,"valeur 63",null,{"$f":"IFERROR(VLOOKUP(C63,Feuil2!A:C,3,FALSE),0)","v":0}]
[null,null,"valeur 64",null,{"$f":"IFERROR(VLOOKUP(C64,Feuil2!A:C,3,FALSE),0)","v":0}]
[null,null,"valeur 65",null,{"$f":"IFERROR(VLOOKUP(C65,Feuil2!A:C,3,FALSE),0)","v":0}]
[null,null,"valeur 66",null,{"$f":"IFERROR(VLOOKUP(C66,Feuil2!A:C,3,FALSE),0)","v":0}]
[null,null,"valeur 67",null,{"$f":"IFERROR(VLOOKUP(C67,Feuil2!A:C,3,FALSE),0)","v":0}]
[null,null,"valeur 68",null,{"$f":"IFERROR(VLOOKUP(C68,Feuil2!A:C,3,FALSE),0)","v":0}]
[null,null,"valeur 69",null,{"$f":"IFERROR(VLOOKUP(C69,Feuil2!A:C,3,FALSE),0)","v":0}]
[null,null,"valeur 70",null,{"$f":"IFERROR(VLOOKUP(C70,Feuil2!A:C,3,FALSE),0)","v":0}]
[null,null,"valeur 71",null,{"$f":"IFERROR(VLOOKUP(C71,Feuil2!A:C,3,FALSE),0)","v":0}]
[null,null,"valeur 72",null,{"$f":"IFERROR(VLOOKUP(C72,Feuil2!A:C,3,FALSE),0)","v":0}]
[null,null,"valeur 73",null,{"$f":"IFERROR(VLOOKUP(C73,Feuil2!A:C,3,FALSE),0)","v":0}]
[null,null,"valeur 74",null,{"$f":"IFERROR(VLOOKUP(C74,Feuil2!A:C,3,FALSE),0)","v":0}]
[null,null,"valeur 75",null,{"$f":"IFERROR(VLOOKUP(C75,Feuil2!A:C,3,FALSE),0)","v":0}]
[null,null,"valeur 76",null,{"$f":"IFERROR(VLOOKUP(C76,Feuil2!A:C,3,FALSE),0)","v":0}]
[null,null,"valeur 77",null,{"$f":"IFERROR(VLOOKUP(C77,Feuil2!A:C,3,FALSE),0)","v":0}]
[null,null,"valeur 78",null,{"$f":"IFERROR(VLOOKUP(C78,Feuil2!A:C,3,FALSE),0)","v":0}]
[null,null,"valeur 79",null,{"$f":"IFERROR(VLOOKUP(C79,Feuil2!A:C,3,FALSE),0)","v":0}]
[null,null,"valeur 80",null,{"$f":"IFERROR(VLOOKUP(C80,Feuil2!A:C,3,FALSE),0)","v":0}]
[null,null,"valeur 81",null,{"$f":"IFERROR(VLOOKUP(C81,Feuil2!A:C,3,FALSE),0)","v":0}]
[null,null,"valeur 82",null,{"$f":"IFERROR(VLOOKUP(C82,Feuil2!A:C,3,FALSE),0)","v":0}]
[null,null,"valeur 83",null,{"$f":"IFERROR(VLOOKUP(C83,Feuil2!A:C,3,FALSE),0)","v":0}]
[null,null,"valeur 84",null,{"$f":"IFERROR(VLOOKUP(C84,Feuil2!A:C,3,FALSE),0)","v":0}]
[null,null,"valeur 85",null,{"$f":"IFERROR(VLOOKUP(C85,Feuil2!A:C,3,FALSE),0)","v":0}]
[null,null,"valeur 86",null,{"$f":"IFERROR(VLOOKUP(C86,Feuil2!A:C,3,FALSE),0)","v":0}]
[null,null,"valeur 87",null,{"$f":"IFERROR(VLOOKUP(C87,Feuil2!A:C,3,FALSE),0)","v":0}]
[null,null,"valeur 88",null,{"$f":"IFERROR(VLOOKUP(C88,Feuil2!A:C,3,FALSE),0)","v":0}]
[null,null,"valeur 89",null,{"$f":"IFERROR(VLOOKUP(C89,Feuil2!A:C,3,FALSE),0)","v":0}]
[null,null,"valeur 90",null,{"$f":"IFERROR(VLOOKUP(C90,Feuil2!A:C,3,FALSE),0)","v":0}]
[null,null,"valeur 91",null,{"$f":"IFERROR(VLOOKUP(C91,Feuil2!A:C,3,FALSE),0)","v":0}]
[null,null,"valeur 92",null,{"$f":"IFERROR(VLOOKUP(C92,Feuil2!A:C,3,FALSE),0)","v":0}]
[null,null,"valeur 93",null,{"$f":"IFERROR(VLOOKUP(C93,Feuil2!A:C,3,FALSE),0)","v":0}]
[null,null,"valeur 94",null,{"$f":"IFERROR(VLOOKUP(C94,Feuil2!A:C,3,FALSE),0)","v":0}]
[null,null,"valeur 95",null,{"$f":"IFERROR(VLOOKUP(C95,Feuil2!A:C,3,FALSE),0)","v":0}]
[null,null,"valeur 96",null,{"$f":"IFERROR(VLOOKUP(C96,Feuil2!A:C,3,FALSE),0)","v":0}]
[null,null,"valeur 97",null,{"$f":"IFERROR(VLOOKUP(C97,Feuil2!A:C,3,FALSE),0)","v":0}]
[null,null,"valeur 98",null,{"$f":"IFERROR(VLOOKUP(C98,Feuil2!A:C,3,FALSE),0)","v":0}]
[null,null,"valeur 99",null,{"$f":"IFERROR(VLOOKUP(C99,Feuil2!A:C,3,FALSE),0)","v":0}]
[null,null,"valeur 100",null,{"$f":"IFERROR(VLOOKUP(C100,Feuil2!A:C,3,FALSE),0)","v":0}]

{"sheet":"Feuil2","index":1,"n_rows":10,"n_cols":3,"rows_kept":10}
["valeur 1",null,"retour 1"]
["valeur 2",null,"retour 2"]
["valeur 3",null,"retour 3"]
["valeur 4",null,"retour 4"]
["valeur 5",null,"retour 5"]
["valeur 6",null,"retour 6"]
["valeur 7",null,"retour 7"]
["valeur 8",null,"retour 8"]
["valeur 9",null,"retour 9"]
["valeur 10",null,"retour 10"]